bitfinex/quotes_BTCUSD_20260307
["timestamp","ask_amount","ask_price","bid_price","bid_amount"]
[1772851940200,0.00148,68255.0,68249.0,0.01203629]
[1772851940763,0.00148,68254.0,68249.0,0.01203629]
[1772851941374,0.00148,68254.0,68246.0,0.07326332]
[1772851943137,0.00148,68254.0,68245.0,0.07326539]
[1772851943138,0.07325685,68253.0,68245.0,0.07326539]
[1772851944672,0.07325685,68253.0,68244.0,0.07326436]
[1772851945248,0.07325685,68253.0,68241.0,0.0732695]
[1772851945487,0.07325685,68253.0,68241.0,0.08542887]
[1772851947707,0.07325685,68253.0,68241.0,0.07338495]
[1772851947909,0.03043634,68250.0,68238.0,0.04148549]
[1772851948135,0.03055172,68250.0,68238.0,0.04148549]
[1772851948719,0.00011538,68250.0,68238.0,0.04148549]
[1772851949409,0.04695568,68250.0,68231.0,0.21980562]
[1772851949608,0.04695568,68250.0,68231.0,0.07476047]
[1772851949609,0.02842825,68249.0,68231.0,0.07476047]
[1772851949815,0.02842825,68247.0,68231.0,0.07476047]
[1772851950364,0.02842825,68247.0,68234.0,0.0002]
[1772851950524,0.00148,68248.0,68234.0,0.0002]
[1772851953005,0.07326329,68247.0,68234.0,0.0002]
[1772851955602,0.07326329,68247.0,68236.0,0.0212593]
[1772851955603,0.00148,68246.0,68236.0,0.0212593]
[1772851955809,0.00148,68246.0,68237.0,0.01205252]
[1772851955971,0.00148,68246.0,68238.0,0.01205252]
[1772851956833,0.00148,68246.0,68238.0,0.04304506]
[1772851957415,0.07326544,68245.0,68238.0,0.04304506]
[1772851959852,0.07326544,68245.0,68234.0,0.07347723]
[1772851966170,0.07326544,68245.0,68234.0,0.0002]
[1772851967208,0.07326544,68245.0,68227.0,0.0002]
[1772851967209,0.0468403,68244.0,68227.0,0.0002]
[1772851967462,0.0468403,68240.0,68227.0,0.0002]
[1772851967620,0.00148,68239.0,68227.0,0.0002]
[1772851968560,0.07327295,68238.0,68227.0,0.0002]
[1772851968785,0.07327295,68238.0,68228.0,0.03099254]
[1772851969197,0.00148,68237.0,68228.0,0.03099254]
[1772851969527,0.07327295,68238.0,68228.0,0.03099254]
[1772851969865,0.00148,68237.0,68228.0,0.03099254]
[1772851970125,0.07327295,68238.0,68228.0,0.03107304]
[1772851970337,0.00148,68236.0,68228.0,0.03107304]
[1772851970763,0.07327617,68235.0,68228.0,0.03107304]
[1772851971520,0.07327617,68235.0,68228.0,0.10435664]
[1772851972409,0.07327617,68237.0,68228.0,0.0733641]
[1772851972617,0.07475617,68237.0,68230.0,0.03099254]
[1772851972954,0.07327617,68237.0,68230.0,0.03099254]
[1772851973153,0.07475617,68237.0,68230.0,0.03107304]
[1772851973456,0.07327617,68237.0,68230.0,0.03107304]
[1772851973680,0.07475617,68237.0,68230.0,0.03107304]
[1772851974461,0.07327617,68237.0,68230.0,0.03107304]
[1772851974637,0.07475617,68237.0,68230.0,0.03107304]
[1772851976143,0.07475617,68237.0,68230.0,0.03127304]
[1772851978389,0.07475617,68237.0,68231.0,0.03054222]
[1772851979301,0.07475617,68237.0,68231.0,0.03062272]
[1772851980853,0.07327617,68237.0,68231.0,0.03062272]
[1772851983452,0.00148,68238.0,68231.0,0.01596658]
[1772851983873,0.07326741,68244.0,68231.0,0.01596658]
[1772851984158,0.00148,68238.0,68231.0,0.01596658]
[1772851984314,0.00022001,68237.0,68231.0,0.01596658]
[1772851985524,0.0732751,68236.0,68231.0,0.01596658]
[1772851985903,0.0732751,68236.0,68231.0,0.02706345]
[1772851986580,0.0732751,68236.0,68231.0,0.07336092]
[1772851986789,0.07349417,68237.0,68233.0,0.01109687]
[1772851987143,0.07349417,68237.0,68233.0,0.04009549]
[1772851987293,0.07349417,68237.0,68233.0,0.02907912]
[1772851989458,0.07349417,68237.0,68233.0,8.05e-05]
[1772851994416,0.07349417,68237.0,68233.0,3.971e-05]
[1772852001038,0.07327299,68238.0,68234.0,0.01131749]
[1772852001235,0.07326942,68242.0,68233.0,3.971e-05]
[1772852001489,0.07474973,68241.0,68234.0,0.01131749]
[1772852002055,0.00022001,68237.0,68234.0,0.01131749]
[1772852002248,0.00022001,68237.0,68236.0,0.01131749]
[1772852002879,0.00022001,68237.0,68235.0,0.02899862]
[1772852003401,0.00022001,68237.0,68233.0,0.07331788]
[1772852003402,0.00022001,68237.0,68233.0,0.07327745]
[1772852003558,0.00022001,68237.0,68233.0,0.10227607]
[1772852003953,0.00022001,68237.0,68234.0,0.02375299]
[1772852004168,0.00022001,68237.0,68233.0,0.07327745]
[1772852004479,0.00022001,68237.0,68233.0,0.10227607]
[1772852004678,0.07474973,68241.0,68233.0,0.07327745]
[1772852005294,0.0732708,68240.0,68233.0,0.07327745]
[1772852005911,0.00148,68241.0,68230.0,0.0002]
[1772852006288,0.07326973,68243.0,68230.0,0.0002]
[1772852006488,0.00148,68242.0,68230.0,0.0002]
[1772852006894,0.00148,68241.0,68230.0,0.0002]
[1772852007301,0.07326973,68243.0,68230.0,0.0002]
[1772852007495,0.00148,68242.0,68230.0,0.0002]
[1772852007909,0.00148,68241.0,68230.0,0.0002]
[1772852008116,0.07326973,68243.0,68230.0,0.0002]
[1772852008318,0.00148,68242.0,68230.0,0.0002]
[1772852008492,0.08540028,68243.0,68230.0,0.0002]
[1772852008699,0.00148,68242.0,68230.0,0.0002]
[1772852009023,0.08540028,68243.0,68230.0,0.0002]
[1772852009209,0.00148,68242.0,68230.0,0.0002]
[1772852009612,0.00148,68241.0,68230.0,0.0002]
[1772852010001,0.08540028,68243.0,68230.0,0.0002]
[1772852010202,0.00148,68242.0,68230.0,0.0002]
[1772852010502,0.08540028,68243.0,68230.0,0.0002]
[1772852010698,0.00148,68242.0,68230.0,0.0002]
[1772852010914,0.00148,68242.0,68231.0,0.0002]
[1772852011155,0.08540028,68243.0,68231.0,0.0002]
[1772852011156,0.00148,68241.0,68231.0,0.0002]
[1772852011363,0.11718654,68261.0,68232.0,0.02899862]
[1772852011592,0.01219797,68261.0,68234.0,0.02899862]
[1772852011782,5.074e-05,68261.0,68238.0,0.02899862]
[1772852011952,0.00022001,68256.0,68240.0,0.03052677]
[1772852012290,0.00022001,68256.0,68247.0,0.03052677]
[1772852012468,0.00022001,68256.0,68248.0,0.00148]
[1772852012994,0.00022001,68256.0,68244.0,0.17568243]
[1772852013193,0.00022001,68256.0,68245.0,0.00148]
[1772852013389,0.0123753,68256.0,68245.0,0.00148]
[1772852013750,0.08562915,68256.0,68245.0,0.00148]
[1772852013955,0.01215529,68255.0,68241.0,0.24895216]
[1772852014151,0.01215529,68255.0,68243.0,0.07326758]
[1772852017941,0.07325522,68255.0,68243.0,0.07326758]
[1772852018259,0.01217085,68254.0,68243.0,0.07326758]
[1772852019139,0.0321133,68252.0,68236.0,0.0732747]
[1772852019342,0.01218206,68247.0,68235.0,0.07475531]
[1772852019592,0.01218206,68245.0,68235.0,0.07475531]
[1772852020357,0.08544797,68245.0,68235.0,0.07475531]
[1772852021884,0.08544797,68245.0,68230.0,0.0002]
[1772852021885,0.01218932,68244.0,68230.0,0.0002]
[1772852022078,0.01218932,68244.0,68232.0,0.07327832]
[1772852022311,0.07326758,68243.0,68232.0,0.07327832]
[1772852022488,0.01218932,68242.0,68232.0,0.07327832]
[1772852027131,0.07326973,68241.0,68231.0,0.07347939]
[1772852027435,0.08547985,68241.0,68231.0,0.07347939]
[1772852028026,0.01221012,68240.0,68231.0,0.07347939]
[1772852029280,0.08548151,68240.0,68231.0,0.07359477]
[1772852041084,0.0732708,68242.0,68231.0,0.07359477]
[1772852041257,0.07326758,68243.0,68231.0,0.07359477]
[1772852041461,0.07326758,68243.0,68234.0,0.116854]
[1772852041641,0.08552382,68243.0,68234.0,0.116854]
[1772852043302,0.08552382,68243.0,68235.0,0.19012962]
[1772852046301,0.08552382,68243.0,68236.0,0.116854]
[1772852047312,0.08552382,68243.0,68235.0,0.07327562]
[1772852047313,0.07326666,68244.0,68235.0,0.19012962]
[1772852048195,0.07326666,68244.0,68236.0,0.116854]
[1772852049215,0.07326666,68244.0,68237.0,0.116854]
[1772852049453,0.01218345,68243.0,68237.0,0.116854]
[1772852049634,0.08545211,68242.0,68237.0,0.116854]
[1772852050478,0.07326866,68242.0,68237.0,0.116854]
[1772852050682,0.03178724,68240.0,68232.0,0.14203951]
[1772852050831,0.03178724,68240.0,68228.0,0.07348158]
[1772852050832,0.01218345,68239.0,68230.0,0.0749613]
[1772852051031,0.01225671,68239.0,68230.0,0.0749613]
[1772852052328,0.01218345,68238.0,68232.0,0.0002]
[1772852055422,0.08545655,68238.0,68232.0,0.0002]
[1772852068990,0.08029908,68238.0,68232.0,0.0002]
[1772852070848,0.08051909,68238.0,68232.0,0.0002]
[1772852071472,0.08051909,68238.0,68230.0,0.03403831]
[1772852075153,0.07349311,68238.0,68230.0,0.03403831]
[1772852078347,0.07349311,68238.0,68230.0,0.03423831]
[1772852080466,0.00022001,68238.0,68230.0,0.03423831]
[1772852080672,0.0734932,68238.0,68230.0,0.03423831]
[1772852081450,0.0734932,68238.0,68229.0,0.07476154]
[1772852081451,0.0734932,68238.0,68229.0,0.07472668]
[1772852081671,0.0734932,68238.0,68230.0,0.07328154]
[1772852083608,0.0734932,68238.0,68229.0,0.07472719]
[1772852083806,0.0120405,68237.0,68228.0,0.07348357]
[1772852084033,0.0120405,68237.0,68225.0,0.07388595]
[1772852084034,0.03133994,68236.0,68225.0,0.0006]
[1772852084230,0.0734932,68238.0,68220.0,0.07349178]
[1772852084231,0.0120405,68233.0,68220.0,0.0002]
[1772852084449,0.0120405,68231.0,68220.0,0.0002]
[1772852085452,0.0120405,68231.0,68220.0,0.07349224]
[1772852085904,0.0120405,68229.0,68223.0,0.0002]
[1772852089549,0.0120405,68227.0,68220.0,0.0002]
[1772852089700,0.0120405,68227.0,68218.0,0.0002]
[1772852090107,0.00148,68226.0,68217.0,0.0002]
[1772852090334,0.0120405,68225.0,68216.0,0.0003425]
[1772852091192,0.0120405,68225.0,68216.0,0.0002]
[1772852091784,0.07328799,68224.0,68216.0,0.0002]
[1772852099013,0.01205086,68222.0,68214.0,1e-08]
[1772852100260,0.0747674,68226.0,68211.0,0.0002]
[1772852100261,0.01205086,68234.0,68212.0,0.03351028]
[1772852100437,0.00148,68231.0,68213.0,0.03351028]
[1772852100604,0.00148,68231.0,68216.0,0.01206337]
[1772852100804,0.07476089,68231.0,68220.0,0.03351028]
[1772852101009,0.07476089,68231.0,68222.0,0.01206337]
[1772852102396,0.07476089,68231.0,68218.0,0.07329443]
[1772852102608,0.07476089,68231.0,68219.0,0.01206337]
[1772852102804,0.07476089,68231.0,68220.0,0.07329228]
[1772852105576,0.07476089,68231.0,68220.0,0.07349228]
[1772852110875,0.08716968,68231.0,68220.0,0.07349228]
[1772852111504,0.08716968,68231.0,68220.0,0.0002]
[1772852112238,0.07476089,68231.0,68220.0,0.0002]
[1772852112481,0.07476089,68231.0,68220.0,0.01220735]
[1772852112801,0.0749809,68231.0,68220.0,0.01220735]
[1772852117501,0.00022001,68231.0,68221.0,0.07329121]
[1772852117728,1.449e-05,68224.0,68221.0,0.07329121]
[1772852117920,0.0732771,68235.0,68224.0,0.01200735]
[1772852118130,0.0732771,68235.0,68226.0,0.0333371]
[1772852118334,0.0732771,68235.0,68227.0,0.01200735]
[1772852119194,0.00022001,68231.0,68227.0,0.01200735]
[1772852119396,0.00022001,68231.0,68228.0,0.01200735]
[1772852127163,0.00022001,68231.0,68228.0,0.08529096]
[1772852127979,0.00022001,68231.0,68228.0,0.07063404]
[1772852128174,0.00022001,68231.0,68227.0,0.07328462]
[1772852130203,0.00022001,68231.0,68226.0,0.07328564]
[1772852133532,0.07346367,68237.0,68226.0,0.07328564]
[1772852133533,0.0005257,68250.0,68226.0,0.07341134]
[1772852133735,0.0005257,68250.0,68230.0,0.01200735]
[1772852133954,0.0005257,68250.0,68233.0,0.03136253]
[1772852134161,0.0005257,68250.0,68236.0,0.01200735]
[1772852134399,0.0005257,68250.0,68237.0,0.04484988]
[1772852134613,0.0005257,68250.0,68239.0,0.01200735]
[1772852134814,0.0005257,68250.0,68242.0,0.0248339]
[1772852135214,0.0005257,68250.0,68240.0,0.00148]
[1772852135416,0.0005257,68250.0,68241.0,0.07326973]
[1772852135736,0.07325586,68254.0,68244.0,0.01200735]
[1772852136026,0.07325586,68254.0,68244.0,0.04336988]
[1772852137551,0.07341921,68259.0,68245.0,0.07326544]
[1772852137879,0.00148,68258.0,68245.0,0.07326544]
[1772852138055,0.085828,68259.0,68245.0,0.07326544]
[1772852138259,0.00148,68258.0,68245.0,0.07326544]
[1772852138655,0.085828,68259.0,68246.0,0.00148]
[1772852138855,0.087308,68259.0,68246.0,0.00148]
[1772852139437,0.00022001,68254.0,68246.0,0.00148]
[1772852139615,0.00022001,68254.0,68247.0,0.07326329]
[1772852141276,0.07347621,68254.0,68234.0,0.07327669]
[1772852141446,0.07347621,68254.0,68237.0,0.07327403]
[1772852141447,0.01257965,68249.0,68237.0,0.07327403]
[1772852141662,0.01257965,68247.0,68237.0,0.07327403]
[1772852142440,0.01257965,68247.0,68235.0,0.07327403]
[1772852142643,0.01405965,68247.0,68235.0,0.07475403]
[1772852143830,0.01257965,68245.0,68235.0,0.07475403]
[1772852146995,0.07326651,68244.0,68235.0,0.07475403]
[1772852149880,0.08584538,68245.0,68235.0,0.07475403]
[1772852150076,0.07496378,68247.0,68235.0,0.08717251]
[1772852150232,0.10647193,68256.0,68235.0,0.08717251]
[1772852150233,0.00148,68250.0,68236.0,0.03136253]
[1772852150445,0.00148,68250.0,68238.0,0.03136253]
[1772852150682,0.00148,68250.0,68239.0,0.01241848]
[1772852152184,0.07474031,68250.0,68240.0,0.0732708]
[1772852152543,0.07347587,68254.0,68241.0,0.00148]
[1772852152918,0.08605552,68254.0,68241.0,0.00148]
[1772852153149,0.01257965,68253.0,68241.0,0.00148]
[1772852153379,0.01257965,68253.0,68240.0,0.0732708]
[1772852153526,0.01257965,68253.0,68242.0,0.00148]
[1772852154049,0.01257965,68253.0,68243.0,0.00148]
[1772852154252,0.07348068,68250.0,68244.0,0.07326651]
[1772852155547,0.08606033,68250.0,68241.0,0.00148]
[1772852155709,0.01257965,68249.0,68242.0,0.07326805]
[1772852156149,0.07326222,68248.0,68236.0,0.0732751]
[1772852156350,0.07326222,68248.0,68237.0,0.00148]
[1772852156530,0.01257965,68246.0,68238.0,0.00148]
[1772852156928,0.01257965,68246.0,68236.0,0.0732751]
[1772852158252,0.08513976,68245.0,68236.0,0.0732751]
[1772852158469,0.01187432,68244.0,68236.0,0.0732751]
[1772852158839,0.01187432,68244.0,68235.0,0.07475562]
[1772852158840,0.01187432,68244.0,68233.0,0.07337733]
[1772852159044,0.01187432,68244.0,68234.0,2.15e-06]
[1772852159244,0.01187432,68243.0,68234.0,2.15e-06]
[1772852160314,0.01187432,68241.0,68234.0,2.15e-06]
[1772852160900,0.01187432,68241.0,68235.0,0.0002]
[1772852161487,0.01187432,68241.0,68236.0,0.14616095]
[1772852161684,0.01187432,68241.0,68237.0,0.14158175]
[1772852161867,0.01187432,68241.0,68235.0,0.0002]
[1772852162509,0.01187432,68239.0,68235.0,0.0002]
[1772852163523,0.0732708,68240.0,68235.0,0.0002]
[1772852163724,0.08514512,68240.0,68235.0,0.0002]
[1772852164727,0.01187432,68241.0,68235.0,0.0002]
[1772852165802,0.03215312,68239.0,68235.0,0.0002]
[1772852166030,0.01187432,68238.0,68234.0,2.15e-06]
[1772852166670,0.08514835,68237.0,68234.0,2.15e-06]
[1772852166875,0.01187432,68236.0,68225.0,0.0004]
[1772852167074,0.07327403,68237.0,68222.0,0.0002]
[1772852167075,0.01187432,68232.0,68222.0,0.0002]
[1772852167279,0.01187432,68230.0,68222.0,0.00058505]
[1772852168150,0.00148,68231.0,68222.0,0.00058505]
[1772852168356,0.00148,68231.0,68222.0,0.07387507]
[1772852168946,0.07328154,68230.0,68222.0,0.07387507]
[1772852169700,0.07328154,68230.0,68222.0,0.00058505]
[1772852170469,0.07328154,68230.0,68228.0,0.0002]
[1772852175131,0.00022001,68241.0,68228.0,0.0002]
[1772852175357,0.00148,68239.0,68230.0,0.01282329]
[1772852176322,0.07327295,68238.0,68230.0,0.01282329]
[1772852176747,0.07327295,68238.0,68230.0,0.08610474]
[1772852178256,0.07327295,68238.0,68230.0,0.08630474]
[1772852181332,0.07327295,68238.0,68230.0,0.01302329]
[1772852181908,0.07327295,68238.0,68230.0,0.08630472]
[1772852182313,0.07327295,68238.0,68230.0,0.01302329]
[1772852183336,0.07327295,68238.0,68230.0,0.08630449]
[1772852192750,0.07327295,68238.0,68230.0,0.01302329]
[1772852193436,0.07349296,68238.0,68230.0,0.01302329]
[1772852193845,0.07349296,68238.0,68230.0,0.08630476]
[1772852194730,0.07349296,68238.0,68231.0,0.11710673]
[1772852195931,0.07349296,68238.0,68232.0,0.11710673]
[1772852198357,0.07349296,68238.0,68232.0,0.11720053]
[1772852200671,0.07349307,68238.0,68232.0,0.19047959]
[1772852201071,0.07349307,68238.0,68232.0,0.11720053]
[1772852201311,0.07349307,68238.0,68233.0,0.11710673]
[1772852202292,0.07349307,68238.0,68233.0,0.11720053]
[1772852205323,0.07349307,68238.0,68234.0,0.11710673]
[1772852206405,0.00022001,68238.0,68234.0,0.11710673]
[1772852206780,0.00022001,68238.0,68234.0,0.12896045]
[1772852207430,0.07349322,68238.0,68234.0,0.12896045]
[1772852209708,0.07497059,68241.0,68234.0,0.11710673]
[1772852209957,0.07349059,68241.0,68234.0,0.19038397]
[1772852210137,0.07348976,68241.0,68236.0,0.11710673]
[1772852213658,0.07348976,68241.0,68237.0,0.11710673]
[1772852214046,0.07326682,68244.0,68237.0,0.11710673]
[1772852214047,0.07474744,68244.0,68237.0,0.2022334]
[1772852214251,0.07474744,68244.0,68238.0,0.12896045]
[1772852214902,0.07474744,68244.0,68238.0,0.12879266]
[1772852215900,0.07474744,68244.0,68238.0,0.11693894]
[1772852217707,0.07474744,68244.0,68233.0,9.38e-05]
[1772852218031,0.01172837,68243.0,68233.0,0.07485207]
[1772852218250,0.01172837,68243.0,68234.0,0.0002]
[1772852218251,0.07326866,68242.0,68234.0,0.0002]
[1772852218529,0.08499703,68242.0,68234.0,0.0002]
[1772852219161,0.08499703,68242.0,68230.0,0.0002]
[1772852219162,0.03040985,68241.0,68230.0,0.0002]
[1772852219364,0.01172837,68240.0,68230.0,0.0002]
[1772852220388,0.07327188,68239.0,68230.0,0.0002]
[1772852226712,0.07327188,68240.0,68230.0,0.0002]
[1772852226923,0.04141665,68239.0,68232.0,0.01189948]
[1772852227241,0.04163666,68239.0,68232.0,0.01189948]
[1772852227449,0.00022001,68239.0,68232.0,0.01189948]
[1772852228628,0.00022001,68239.0,68230.0,0.07348076]
[1772852230570,0.07327295,68238.0,68230.0,0.07348076]
[1772852231629,0.07349296,68239.0,68231.0,0.01297426]
[1772852232057,0.07327295,68238.0,68231.0,0.01297426]
[1772852233079,0.07327295,68238.0,68231.0,0.08625436]
[1772852233273,0.07496759,68244.0,68232.0,0.01297426]
[1772852235741,0.07496759,68244.0,68233.0,0.08625258]
[1772852236746,0.07348759,68244.0,68233.0,0.08625258]
[1772852237029,0.07496759,68244.0,68233.0,0.08625258]
[1772852237224,0.07348759,68244.0,68233.0,0.08625258]
[1772852237382,0.07496759,68244.0,68233.0,0.08625258]
[1772852238263,0.07348759,68244.0,68233.0,0.08625258]
[1772852238446,0.07496759,68244.0,68233.0,0.08625258]
[1772852239507,0.07348759,68244.0,68233.0,0.08625258]
[1772852239713,0.07496759,68244.0,68233.0,0.08625258]
[1772852240546,0.07348759,68244.0,68233.0,0.08625258]
[1772852240746,0.07496759,68244.0,68233.0,0.08625258]
[1772852241351,0.07348759,68244.0,68233.0,0.07327832]
[1772852241568,0.07496759,68244.0,68234.0,0.01297426]
[1772852242383,0.07348759,68244.0,68234.0,0.01297426]
[1772852242585,0.07496759,68244.0,68234.0,0.01297426]
[1772852242991,0.07496759,68244.0,68235.0,0.07327617]
[1772852244296,0.07348759,68244.0,68235.0,0.07327617]
[1772852244515,0.07496759,68244.0,68235.0,0.07327617]
[1772852244829,0.07348759,68244.0,68235.0,0.07327617]
[1772852245032,0.07496759,68244.0,68235.0,0.07327617]
[1772852245692,0.00170001,68244.0,68236.0,0.01297426]
[1772852245885,0.07348686,68244.0,68236.0,0.01297426]
[1772852246080,0.07496686,68244.0,68236.0,0.01297426]
[1772852246978,0.07496686,68244.0,68237.0,0.07327403]
[1772852248022,0.07496686,68244.0,68234.0,0.07331842]
[1772852248189,0.01260589,68242.0,68232.0,0.25030368]
[1772852248395,0.02874224,68241.0,68232.0,0.25030368]
[1772852248585,0.02874224,68241.0,68232.0,0.24882368]
[1772852249178,0.0732708,68240.0,68232.0,0.07327937]
[1772852251129,0.07348537,68246.0,68235.0,0.01297426]
[1772852251326,0.07326555,68245.0,68235.0,0.01297426]
[1772852253004,0.07326555,68245.0,68237.0,0.01297426]
[1772852254855,0.07326555,68245.0,68238.0,0.07327295]
[1772852255082,0.07348556,68245.0,68238.0,0.07327295]
[1772852255291,0.00022001,68248.0,68239.0,0.01297426]
[1772852255665,0.00074261,68250.0,68239.0,0.01297426]
[1772852255874,0.00074261,68250.0,68240.0,0.01297426]
[1772852256092,0.00074261,68250.0,68240.0,0.01445426]
[1772852256401,0.07347912,68251.0,68240.0,0.01445426]
[1772852256402,1e-08,68253.0,68240.0,0.01450495]
[1772852256582,0.07231032,68261.0,68246.0,0.01297426]
[1772852256826,0.07231032,68261.0,68245.0,0.17554431]
[1772852256827,0.07231032,68261.0,68248.0,0.01297426]
[1772852257198,0.07231032,68261.0,68249.0,0.07326114]
[1772852257395,0.07231032,68261.0,68250.0,0.01297426]
[1772852257722,0.072378,68261.0,68250.0,0.01297426]
[1772852259132,6.768e-05,68261.0,68250.0,0.01297426]
[1772852259394,0.05521145,68262.0,68252.0,0.01252879]
[1772852259570,0.00128,68280.0,68254.0,0.01252879]
[1772852259571,0.07323229,68276.0,68254.0,0.01252879]
[1772852259766,4.159e-05,68271.0,68255.0,0.01252879]
[1772852259992,4.159e-05,68271.0,68256.0,0.01252879]
[1772852260366,4.159e-05,68271.0,68258.0,0.01257733]
[1772852260679,4.159e-05,68271.0,68260.0,0.01252879]
[1772852261260,4.159e-05,68271.0,68261.0,0.07324826]
[1772852261475,4.159e-05,68271.0,68262.0,0.01252879]
[1772852262604,0.0002616,68271.0,68262.0,0.01400879]
[1772852263377,0.0002616,68271.0,68264.0,0.01252879]
[1772852266468,0.0002616,68271.0,68266.0,0.01252879]
[1772852267170,0.07362243,68271.0,68263.0,0.07324612]
[1772852267371,0.05559565,68271.0,68264.0,0.01252879]
[1772852268455,0.05559565,68271.0,68265.0,0.07324397]
[1772852268653,0.05559565,68271.0,68266.0,0.01252879]
[1772852269585,0.0003842,68271.0,68263.0,0.00148]
[1772852269781,0.05559565,68271.0,68263.0,0.00148]
[1772852270022,0.05559565,68271.0,68261.0,0.01252879]
[1772852270169,0.05559565,68271.0,68262.0,0.00148]
[1772852270373,0.05559565,68271.0,68262.0,0.01400879]
[1772852270578,0.07323861,68270.0,68262.0,0.0872555]
[1772852270773,0.07323861,68270.0,68260.0,0.00148]
[1772852270972,0.07323861,68270.0,68260.0,0.01400879]
[1772852271172,0.07323861,68270.0,68260.0,0.01252879]
[1772852271348,0.07323861,68270.0,68260.0,0.01400879]
[1772852273321,0.07323861,68270.0,68260.0,0.07472891]
[1772852273498,0.07323861,68270.0,68261.0,0.01252879]
[1772852274178,0.0001226,68269.0,68261.0,0.01252879]
[1772852275078,0.0001226,68269.0,68263.0,0.01252879]
[1772852277426,0.0001226,68269.0,68264.0,0.08577383]
[1772852283187,0.0001226,68269.0,68264.0,0.08656979]
[1772852283567,0.0001226,68269.0,68265.0,0.01332475]
[1772852285388,0.0001226,68269.0,68265.0,0.08656783]
[1772852287029,0.0001226,68269.0,68265.0,0.08656847]
[1772852287222,0.0001226,68269.0,68265.0,0.01332475]
[1772852287375,0.0001226,68269.0,68263.0,0.0002]
[1772852287580,0.05521145,68268.0,68263.0,0.01352475]
[1772852288389,0.07349943,68271.0,68263.0,0.01352475]
[1772852288595,0.05533405,68270.0,68263.0,0.01352475]
[1772852289341,0.05533405,68270.0,68264.0,0.07324504]
[1772852291007,0.00022001,68269.0,68264.0,0.07324504]
[1772852292056,0.00022001,68269.0,68264.0,0.08634913]
[1772852293647,0.00022001,68269.0,68265.0,0.01310409]
[1772852294381,0.00022001,68269.0,68264.0,0.07324504]
[1772852294886,0.00022001,68269.0,68264.0,0.08634913]
[1772852295008,0.0002616,68271.0,68264.0,0.08634913]
[1772852297770,0.0002616,68271.0,68264.0,0.07324504]
[1772852297985,0.07345039,68278.0,68264.0,0.07324504]
[1772852297986,0.0129259,68298.0,68271.0,0.01310409]
[1772852298209,0.0079198,68300.0,68267.0,0.00090482]
[1772852298210,0.0129259,68294.0,68282.0,0.07322574]
[1772852298409,0.03178412,68293.0,68283.0,0.00148]
[1772852299196,0.02887811,68289.0,68282.0,0.00148]
[1772852299417,0.0129259,68288.0,68282.0,0.00148]
[1772852300106,0.0129259,68288.0,68283.0,0.00248]
[1772852300529,0.0129259,68288.0,68284.0,0.07322359]
[1772852301212,0.00022001,68285.0,68284.0,0.07322359]
[1772852304340,0.0129259,68288.0,68284.0,0.07322359]
[1772852304537,0.0129259,68288.0,68281.0,0.04126066]
[1772852305745,0.00011546,68289.0,68281.0,0.04274066]
[1772852307595,0.00022001,68288.0,68281.0,0.04274066]
[1772852307821,0.01314591,68288.0,68281.0,0.04274066]
[1772852309177,0.00022001,68288.0,68281.0,0.04274066]
[1772852309783,0.00022001,68288.0,68281.0,0.00148]
[1772852311449,0.00022001,68288.0,68283.0,0.11658573]
[1772852311649,0.01314591,68288.0,68284.0,0.14573216]
[1772852311809,0.01314591,68288.0,68285.0,0.21895384]
[1772852312005,0.01314591,68288.0,68286.0,0.14573216]
[1772852312208,0.01314591,68288.0,68287.0,0.14573216]
[1772852312731,0.00011546,68289.0,68287.0,0.14573216]
[1772852312913,0.00011546,68289.0,68286.0,0.07322143]
[1772852313120,0.01304136,68289.0,68286.0,0.07322143]
[1772852314241,0.00011546,68289.0,68282.0,0.07322574]
[1772852314870,0.00033547,68289.0,68282.0,0.07322574]
[1772852317115,0.00033547,68289.0,68282.0,0.18981147]
[1772852320225,0.00033547,68289.0,68283.0,0.11658573]
[1772852321923,0.00022001,68295.0,68285.0,0.13024121]
[1772852322204,0.00022001,68295.0,68286.0,0.11658573]
[1772852323046,0.00022001,68295.0,68287.0,0.11658573]
[1772852323222,0.00022001,68295.0,68288.0,0.11658573]
[1772852323620,0.00022001,68289.0,68288.0,0.11658573]
[1772852323841,0.00022001,68295.0,68288.0,0.11658573]
[1772852324108,0.00022001,68295.0,68289.0,0.07321823]
[1772852324282,0.00022001,68295.0,68289.0,0.18980396]
[1772852325100,0.00022001,68295.0,68290.0,0.11658573]
[1772852325264,0.00022001,68295.0,68291.0,0.11658573]
[1772852326398,0.00022001,68295.0,68293.0,0.07321394]
[1772852326564,0.00022001,68295.0,68293.0,0.18979967]
[1772852327161,0.00022001,68295.0,68293.0,0.07321394]
[1772852328733,0.00022001,68296.0,68293.0,0.07321394]
[1772852328927,0.00022001,68296.0,68293.0,0.08498507]
[1772852329135,0.00022001,68296.0,68291.0,0.07321394]
[1772852329632,0.00022001,68296.0,68292.0,0.07321394]
[1772852329940,0.00605863,68295.0,68291.0,0.04240194]
[1772852330134,0.00605863,68295.0,68291.0,0.04388194]
[1772852330338,0.00022001,68296.0,68291.0,0.04388194]
[1772852330513,0.00022001,68296.0,68291.0,0.00148]
[1772852330914,0.00022001,68296.0,68287.0,0.07322037]
[1772852331268,0.00022001,68296.0,68288.0,0.00148]
[1772852331389,0.00022001,68295.0,68288.0,0.00148]
[1772852332829,0.00022001,68295.0,68289.0,0.07321823]
[1772852333031,0.00022001,68295.0,68289.0,0.07469823]
[1772852333422,0.00022001,68295.0,68289.0,0.07321823]
[1772852333627,0.00022001,68295.0,68289.0,0.07469823]
[1772852339460,0.00022001,68295.0,68289.0,0.07321823]
[1772852339666,0.00022001,68295.0,68289.0,0.07469823]
[1772852339873,0.00022001,68295.0,68290.0,0.17545667]
[1772852340095,0.00022001,68295.0,68291.0,0.17545667]
[1772852341659,0.00022001,68295.0,68289.0,0.07469823]
[1772852347200,0.07321287,68294.0,68289.0,0.07469823]
[1772852348662,0.07321287,68294.0,68290.0,0.00148]
[1772852352002,0.07321287,68294.0,68289.0,0.17545667]
[1772852352155,0.07321287,68294.0,68290.0,0.00148]
[1772852352353,0.07321287,68294.0,68289.0,0.17545667]
[1772852352560,0.07321501,68292.0,68290.0,0.00148]
[1772852354143,0.07343277,68295.0,68290.0,0.00148]
[1772852354704,0.07343277,68295.0,68291.0,0.02944503]
[1772852355901,0.06994338,68310.0,68291.0,0.02944503]
[1772852355902,0.0001401,68353.0,68309.0,0.06302869]
[1772852356098,0.01619012,68350.0,68330.0,0.21892246]
[1772852356337,0.01619012,68350.0,68316.0,0.02689627]
[1772852356338,0.01619012,68350.0,68332.0,0.01440977]
[1772852356339,0.02798644,68349.0,68332.0,0.01440977]
[1772852356541,0.04217656,68349.0,68333.0,0.00148]
[1772852356668,0.04217656,68349.0,68335.0,0.08757871]
[1772852356870,0.04217656,68349.0,68336.0,0.15966321]
[1772852357172,0.04217656,68349.0,68337.0,0.14525344]
[1772852357379,0.04217656,68349.0,68336.0,0.01440977]
[1772852357380,0.04217656,68349.0,68338.0,0.14673344]